fUSD/lending_fUSD_20250609
["ID","MTS","AMOUNT","RATE_DAILY","PERIOD"]
[365169516,1749511022843,667.9,0.00016931,2]
[365169517,1749511023187,490.0,0.00016438,2]
[365169518,1749511023267,490.0,0.00016602,2]
[365169519,1749511023449,490.0,0.00016602,2]
[365169520,1749511023512,520.51,0.00016438,2]
[365169521,1749511023568,490.0,0.00016767,2]
[365169522,1749511023715,490.0,0.00016767,2]
[365169523,1749511023768,520.51,0.00016602,2]
[365169524,1749511023835,490.0,0.00016931,2]
[365169525,1749511023961,490.0,0.00016931,2]
[365169526,1749511024038,520.51,0.00016767,2]
[365169527,1749511024301,520.51,0.00016931,2]
[365169528,1749511024534,480.0,0.00016438,2]
[365169529,1749511025158,489.78941193,0.00016438,2]
[365169530,1749511026123,480.0,0.00016438,2]
[365169531,1749511026639,1517.17,0.00016438,2]
[365169532,1749511026979,1517.17,0.00016602,2]
[365169533,1749511027201,1517.17,0.00016767,2]
[365169534,1749511027453,1517.17,0.00016931,2]
[365169535,1749511028042,673.41,0.00016438,2]
[365169536,1749511028229,490.0,0.00016438,2]
[365169537,1749511028291,673.41,0.00016602,2]
[365169538,1749511028552,673.41,0.00016767,2]
[365169539,1749511028801,673.41,0.00016931,2]
[365169540,1749511029025,490.0,0.00016602,2]
[365169541,1749511029269,490.0,0.00016767,2]
[365169542,1749511029503,490.0,0.00016931,2]
[365169543,1749511029644,480.0,0.00016438,2]
[365169544,1749511030342,490.0,0.00016438,2]
[365169545,1749511030452,-140.93312146,0.00017095,2]
[365169546,1749511030479,-245.31077698,0.00017095,2]
[365169547,1749511030602,490.0,0.00016602,2]
[365169548,1749511030877,490.0,0.00016767,2]
[365169549,1749511030991,559.88,0.00016438,2]
[365169550,1749511031122,490.0,0.00016931,2]
[365169551,1749511031281,559.88,0.00016602,2]
[365169552,1749511031690,490.0,0.00016438,2]
[365169553,1749511031865,559.88,0.00016767,2]
[365169554,1749511031949,490.0,0.00016602,2]
[365169555,1749511032388,490.0,0.00016767,2]
[365169556,1749511032633,490.0,0.00016931,2]
[365169557,1749511033201,490.0,0.00016438,2]
[365169558,1749511033340,490.0,0.00016438,2]
[365169559,1749511033595,490.0,0.00016602,2]
[365169560,1749511033669,-241.46216199,0.00017095,2]
[365169561,1749511033858,490.0,0.00016767,2]
[365169562,1749511034008,490.0,0.00016438,2]
[365169563,1749511034114,490.0,0.00016931,2]
[365169564,1749511034259,490.0,0.00016602,2]
[365169565,1749511034512,490.0,0.00016767,2]
[365169566,1749511034849,490.0,0.00016931,2]
[365169567,1749511035783,792.18,0.00016438,2]
[365169568,1749511036091,792.18,0.00016602,2]
[365169569,1749511036531,792.18,0.00016767,2]
[365169570,1749511036592,792.18,0.00016931,2]
[365169571,1749511037503,559.88,0.00016931,2]
[365169572,1749511038159,490.0,0.00016602,2]
[365169573,1749511038225,490.0,0.00016767,2]
[365169574,1749511038332,490.0,0.00016931,2]
[365169575,1749511039504,-159.29,0.00017095,2]
[365169576,1749511040153,480.0,0.00016438,2]
[365169577,1749511041047,1312.01,0.00016438,2]
[365169578,1749511041314,1312.01,0.00016602,2]
[365169579,1749511041696,1312.01,0.00016767,2]
[365169580,1749511041847,490.0,0.00016438,2]
[365169581,1749511042000,1312.01,0.00016931,2]
[365169582,1749511042141,605.06023302,0.00016602,2]
[365169583,1749511042196,-176.14167058,0.00017095,2]
[365169584,1749511042562,1086.63,0.00016438,2]
[365169585,1749511042806,213.01138037,0.00016602,2]
[365169586,1749511042830,873.61861963,0.00016602,2]
[365169587,1749511042866,490.0,0.00016438,2]
[365169588,1749511043074,490.0,0.00016602,2]
[365169589,1749511043107,1086.63,0.00016767,2]
[365169590,1749511043333,490.0,0.00016767,2]
[365169591,1749511043384,1086.63,0.00016931,2]
[365169592,1749511043578,490.0,0.00016931,2]
[365169593,1749511044552,490.0,0.00016438,2]
[365169594,1749511044737,490.0,0.00016438,2]
[365169595,1749511044806,490.0,0.00016602,2]
[365169596,1749511045001,490.0,0.00016602,2]
[365169597,1749511045067,490.0,0.00016767,2]
[365169598,1749511045263,490.0,0.00016767,2]
[365169599,1749511045314,3496.08,0.00016438,2]
[365169600,1749511045382,490.0,0.00016931,2]
[365169601,1749511045541,490.0,0.00016931,2]
[365169602,1749511045682,3496.08,0.00016602,2]
[365169603,1749511045863,3496.08,0.00016767,2]
[365169604,1749511046016,852.17,0.00016438,2]
[365169605,1749511046118,3496.08,0.00016931,2]
[365169606,1749511046252,852.17,0.00016602,2]
[365169607,1749511046846,852.17,0.00016767,2]
[365169608,1749511046915,852.17,0.00016931,2]
[365169609,1749511047127,-181.31501508,0.00017095,2]
[365169610,1749511048838,1485.95,0.00016438,2]
[365169611,1749511049093,1485.95,0.00016602,2]
[365169612,1749511049374,1485.95,0.00016767,2]
[365169613,1749511049547,-490.16142912,0.00017095,2]
[365169614,1749511049596,1485.95,0.00016931,2]
[365169615,1749511049656,927.48,0.00016438,2]
[365169616,1749511049903,927.48,0.00016602,2]
[365169617,1749511049937,1530.47,0.00016438,2]
[365169618,1749511049970,506.81,0.00016438,2]
[365169619,1749511050166,1530.47,0.00016602,2]
[365169620,1749511050201,927.48,0.00016767,2]
[365169621,1749511050233,506.81,0.00016602,2]
[365169622,1749511050439,927.48,0.00016931,2]
[365169623,1749511050471,1530.47,0.00016767,2]
[365169624,1749511050503,506.81,0.00016767,2]
[365169625,1749511050691,506.81,0.00016931,2]
[365169626,1749511051038,1530.47,0.00016931,2]
[365169627,1749511052730,490.0,0.00016438,2]
[365169628,1749511052981,490.0,0.00016602,2]
[365169629,1749511053254,490.0,0.00016767,2]
[365169630,1749511053513,490.0,0.00016931,2]
[365169631,1749511054617,-51.21894625,0.00017095,2]
[365169632,1749511054644,-167.17464277,0.00017095,2]
[365169633,1749511054780,272.8727153,0.00016438,2]
[365169634,1749511055541,490.0,0.00016438,2]
[365169635,1749511055795,490.0,0.00016602,2]
[365169636,1749511056528,490.0,0.00016767,2]
[365169637,1749511056667,490.0,0.00016931,2]
[365169638,1749511056833,-200.97259269,0.00017095,2]
[365169639,1749511057930,490.0,0.00016438,2]
[365169640,1749511058182,490.0,0.00016602,2]
[365169641,1749511058430,490.0,0.00016767,2]
[365169642,1749511058466,-227.19403926,0.00017095,2]
[365169643,1749511058683,490.0,0.00016931,2]
[365169644,1749511061072,1051.34,0.00016438,2]
[365169645,1749511061450,660.28,0.00016438,2]
[365169646,1749511061684,1051.34,0.00016602,2]
[365169647,1749511061716,660.28,0.00016602,2]
[365169648,1749511061944,1051.34,0.00016767,2]
[365169649,1749511061975,660.28,0.00016767,2]
[365169650,1749511062184,660.28,0.00016931,2]
[365169651,1749511062216,1051.34,0.00016931,2]
[365169652,1749511062731,-191.47081547,0.00017009,2]
[365169653,1749511063064,490.0,0.00016438,2]
[365169654,1749511063292,490.0,0.00016602,2]
[365169655,1749511063719,490.0,0.00016767,2]
[365169656,1749511063853,490.0,0.00016438,2]
[365169657,1749511063966,226.2081834,0.00016931,2]
[365169658,1749511063996,490.0,0.00016438,2]
[365169659,1749511064031,922.98,0.00016438,2]
[365169660,1749511064101,490.0,0.00016602,2]
[365169661,1749511064219,490.0,0.00016602,2]
[365169662,1749511064297,922.98,0.00016602,2]
[365169663,1749511064367,490.0,0.00016767,2]
[365169664,1749511064403,-280.09812449,0.00017009,2]
[365169665,1749511064463,616.20031165,0.00016767,2]
[365169666,1749511064540,922.98,0.00016767,2]
[365169667,1749511064614,490.0,0.00016931,2]
[365169668,1749511064795,922.98,0.00016931,2]
[365169669,1749511065145,656.63,0.00016438,2]
[365169670,1749511065401,656.63,0.00016602,2]
[365169671,1749511065690,656.63,0.00016767,2]
[365169672,1749511066119,656.63,0.00016931,2]
[365169673,1749511066151,490.0,0.00016438,2]
[365169674,1749511066312,490.0,0.00016602,2]
[365169675,1749511066542,490.0,0.00016767,2]
[365169676,1749511066846,490.0,0.00016931,2]
[365169677,1749511067141,490.0,0.00016438,2]
[365169678,1749511067174,490.0,0.00016438,2]
[365169679,1749511067569,490.0,0.00016438,2]
[365169680,1749511067608,490.0,0.00016602,2]
[365169681,1749511067648,490.0,0.00016602,2]
[365169682,1749511067682,490.0,0.00016602,2]
[365169683,1749511067716,490.0,0.00016767,2]
[365169684,1749511067763,490.0,0.00016767,2]
[365169685,1749511067849,490.0,0.00016767,2]
[365169686,1749511067880,490.0,0.00016438,2]
[365169687,1749511067910,490.0,0.00016931,2]
[365169688,1749511068107,490.0,0.00016931,2]
[365169689,1749511068140,490.0,0.00016602,2]
[365169690,1749511068354,490.0,0.00016931,2]
[365169691,1749511068391,490.0,0.00016767,2]
[365169692,1749511068631,490.0,0.00016931,2]
[365169693,1749511068877,490.0,0.00016438,2]
[365169694,1749511069496,490.0,0.00016602,2]
[365169695,1749511069771,490.0,0.00016767,2]
[365169696,1749511070025,490.0,0.00016931,2]
[365169697,1749511070922,-277.65553523,0.00017009,2]
[365169698,1749511071747,490.0,0.00016438,2]
[365169699,1749511072023,490.0,0.00016602,2]
[365169700,1749511072278,490.0,0.00016767,2]
[365169701,1749511072542,490.0,0.00016931,2]
[365169702,1749511072833,793.82,0.00016438,2]
[365169703,1749511072961,-308.54290644,0.00017009,2]
[365169704,1749511073082,490.0,0.00016438,2]
[365169705,1749511073115,793.82,0.00016602,2]
[365169706,1749511073149,490.0,0.00016438,2]
[365169707,1749511073331,793.82,0.00016767,2]
[365169708,1749511073364,490.0,0.00016602,2]
[365169709,1749511073395,490.0,0.00016602,2]
[365169710,1749511073590,793.82,0.00016931,2]
[365169711,1749511073622,490.0,0.00016767,2]
[365169712,1749511073654,490.0,0.00016767,2]
[365169713,1749511073881,490.0,0.00016931,2]
[365169714,1749511074101,490.0,0.00016931,2]
[365169715,1749511074915,-178.18102265,0.00017009,2]
[365169716,1749511076301,490.0,0.00016438,2]
[365169717,1749511076514,490.0,0.00016438,2]
[365169718,1749511076587,490.0,0.00016602,2]
[365169719,1749511076758,490.0,0.00016602,2]
[365169720,1749511076871,490.0,0.00016767,2]
[365169721,1749511077015,490.0,0.00016767,2]
[365169722,1749511077120,490.0,0.00016931,2]
[365169723,1749511077274,490.0,0.00016931,2]
[365169724,1749511078335,-151.0,0.00017009,2]
[365169725,1749511078864,761.24,0.00016438,2]
[365169726,1749511079128,761.24,0.00016602,2]
[365169727,1749511079389,761.24,0.00016767,2]
[365169728,1749511079646,738.83017002,0.00016931,2]
[365169729,1749511079675,22.40982998,0.00016931,2]
[365169730,1749511080418,490.0,0.00016438,2]
[365169731,1749511080663,490.0,0.00016602,2]
[365169732,1749511080902,490.0,0.00016438,2]
[365169733,1749511080932,490.0,0.00016767,2]
[365169734,1749511081114,-203.76515372,0.00017009,2]
[365169735,1749511081148,490.0,0.00016602,2]
[365169736,1749511081183,490.0,0.00016931,2]
[365169737,1749511081417,490.0,0.00016767,2]
[365169738,1749511081685,490.0,0.00016931,2]
[365169739,1749511081777,480.0,0.00016438,2]
[365169740,1749511082707,490.0,0.00016438,2]
[365169741,1749511082737,-615.16697196,0.00017009,2]
[365169742,1749511083321,490.0,0.00016602,2]
[365169743,1749511083567,490.0,0.00016767,2]
[365169744,1749511083808,490.0,0.00016931,2]
[365169745,1749511084406,490.0,0.00016438,2]
[365169746,1749511084654,490.0,0.00016602,2]
[365169747,1749511084877,724.55,0.00016438,2]
[365169748,1749511084921,490.0,0.00016767,2]
[365169749,1749511085115,724.55,0.00016602,2]
[365169750,1749511085150,490.0,0.00016438,2]
[365169751,1749511085187,490.0,0.00016931,2]
[365169752,1749511085389,724.55,0.00016767,2]
[365169753,1749511085420,490.0,0.00016602,2]
[365169754,1749511085585,-407.92634861,0.00017009,2]
[365169755,1749511085645,724.55,0.00016931,2]
[365169756,1749511085683,490.0,0.00016767,2]
[365169757,1749511085947,490.0,0.00016931,2]
[365169758,1749511088340,-198.86012318,0.00017009,2]
[365169759,1749511089526,-156.81968863,0.00017009,2]
[365169760,1749511090081,490.0,0.00016438,2]
[365169761,1749511090329,490.0,0.00016602,2]
[365169762,1749511091017,490.0,0.00016767,2]
[365169763,1749511091071,490.0,0.00016931,2]
[365169764,1749511093042,490.0,0.00016438,2]
[365169765,1749511093127,698.77,0.00016438,2]
[365169766,1749511093288,490.0,0.00016602,2]
[365169767,1749511093379,698.77,0.00016602,2]
[365169768,1749511093534,490.0,0.00016767,2]
[365169769,1749511093640,698.77,0.00016767,2]
[365169770,1749511093780,490.0,0.00016931,2]
[365169771,1749511093890,698.77,0.00016931,2]
[365169772,1749511094227,-149.31681462,0.00017009,2]
[365169773,1749511094251,-105.06294562,0.00017031,2]
[365169774,1749511094660,490.0,0.00016438,2]
[365169775,1749511094703,512.19,0.00016438,2]
[365169776,1749511094935,512.19,0.00016602,2]
[365169777,1749511094974,490.0,0.00016602,2]
[365169778,1749511095184,512.19,0.00016767,2]
[365169779,1749511095221,490.0,0.00016767,2]
[365169780,1749511095437,512.19,0.00016931,2]
[365169781,1749511095473,490.0,0.00016931,2]
[365169782,1749511095589,3496.23,0.00016438,2]
[365169783,1749511095945,3496.23,0.00016602,2]
[365169784,1749511096088,3496.23,0.00016767,2]
[365169785,1749511096171,1015.63,0.00016438,2]
[365169786,1749511096329,3496.23,0.00016931,2]
[365169787,1749511096428,1015.63,0.00016602,2]
[365169788,1749511096699,1015.63,0.00016767,2]
[365169789,1749511096951,1015.63,0.00016931,2]
[365169790,1749511097462,-144.93705438,0.00017031,2]
[365169791,1749511097487,-25.8236338,0.00017052,2]
[365169792,1749511097987,490.0,0.00016438,2]
[365169793,1749511098237,490.0,0.00016602,2]
[365169794,1749511098853,490.0,0.00016767,2]
[365169795,1749511099135,490.0,0.00016931,2]
[365169796,1749511099778,490.0,0.00016438,2]
[365169797,1749511100021,490.0,0.00016602,2]
[365169798,1749511100275,490.0,0.00016767,2]
[365169799,1749511100526,490.0,0.00016931,2]
[365169800,1749511100666,490.0,0.00016438,2]
[365169801,1749511100922,490.0,0.00016602,2]
[365169802,1749511101180,490.0,0.00016767,2]
[365169803,1749511101434,490.0,0.00016931,2]
[365169804,1749511102321,-274.1763662,0.00017052,2]
[365169805,1749511102347,-129.73171092,0.00017095,2]
[365169806,1749511102469,490.0,0.00016438,2]
[365169807,1749511102732,490.0,0.00016602,2]
[365169808,1749511102982,490.0,0.00016767,2]
[365169809,1749511103245,490.0,0.00016931,2]
[365169810,1749511103683,490.0,0.00016438,2]
[365169811,1749511103937,490.0,0.00016602,2]
[365169812,1749511104189,490.0,0.00016767,2]
[365169813,1749511104415,739.89,0.00016438,2]
[365169814,1749511104451,490.0,0.00016931,2]
[365169815,1749511104774,739.89,0.00016602,2]
[365169816,1749511104927,-188.51534781,0.00017095,2]
[365169817,1749511105031,739.89,0.00016767,2]
[365169818,1749511105264,490.0,0.00016438,2]
[365169819,1749511105411,490.0,0.00016602,2]
[365169820,1749511105445,739.89,0.00016931,2]
[365169821,1749511105529,490.0,0.00016767,2]
[365169822,1749511105785,490.0,0.00016931,2]
[365169823,1749511105816,533.31,0.00016438,2]
[365169824,1749511106066,533.31,0.00016602,2]
[365169825,1749511106316,533.31,0.00016767,2]
[365169826,1749511106586,533.31,0.00016931,2]
[365169827,1749511106842,863.7,0.00016438,2]
[365169828,1749511107154,863.7,0.00016602,2]
[365169829,1749511107417,863.7,0.00016767,2]
[365169830,1749511108012,863.7,0.00016931,2]
[365169831,1749511110545,-360.39005499,0.00017095,2]
[365169832,1749511110620,490.0,0.00016438,2]
[365169833,1749511110927,490.0,0.00016602,2]
[365169834,1749511111247,490.0,0.00016767,2]
[365169835,1749511111514,490.0,0.00016931,2]
[365169836,1749511112126,-498.7506238,0.00017095,2]
[365169837,1749511113142,32211.26017002,0.00016438,2]
[365169838,1749511113171,3930.28982998,0.00016438,2]
[365169839,1749511113205,1223.04,0.00016438,2]
[365169840,1749511113403,1223.04,0.00016602,2]
[365169841,1749511113437,36141.55,0.00016602,2]
[365169842,1749511113656,1223.04,0.00016767,2]
[365169843,1749511113924,1223.04,0.00016931,2]
[365169844,1749511114001,36141.55,0.00016767,2]
[365169845,1749511114192,490.14,0.00016438,2]
[365169846,1749511114270,14855.06017002,0.00016931,2]
[365169847,1749511114299,21286.48982998,0.00016931,2]
[365169848,1749511114437,490.14,0.00016602,2]
[365169849,1749511114530,823.92,0.00016438,2]
[365169850,1749511114688,490.14,0.00016767,2]
[365169851,1749511114777,823.92,0.00016602,2]
[365169852,1749511114808,-151.0,0.00017095,2]
[365169853,1749511115131,490.14,0.00016931,2]
[365169854,1749511115195,823.92,0.00016767,2]
[365169855,1749511115228,597.29,0.00016438,2]
[365169856,1749511115445,597.29,0.00016602,2]
[365169857,1749511115477,823.92,0.00016931,2]
[365169858,1749511115600,739.4,0.00016438,2]
[365169859,1749511115740,597.29,0.00016767,2]
[365169860,1749511115886,739.4,0.00016602,2]
[365169861,1749511115985,597.29,0.00016931,2]
[365169862,1749511116466,739.4,0.00016767,2]
[365169863,1749511116539,490.0,0.00016438,2]
[365169864,1749511116594,739.4,0.00016931,2]
[365169865,1749511116675,490.0,0.00016602,2]
[365169866,1749511116812,490.0,0.00016767,2]
[365169867,1749511117038,490.0,0.00016438,2]
[365169868,1749511117096,490.0,0.00016931,2]
[365169869,1749511117305,490.0,0.00016602,2]
[365169870,1749511117598,490.0,0.00016767,2]
[365169871,1749511118382,-469.76334671,0.00017052,2]
[365169872,1749511121030,-162.9968046,0.00017052,2]
[365169873,1749511122993,1544.87,0.00016438,2]
[365169874,1749511123265,1544.87,0.00016602,2]
[365169875,1749511123512,1544.87,0.00016767,2]
[365169876,1749511123770,1544.87,0.00016931,2]
[365169877,1749511124489,490.0,0.00016438,2]
[365169878,1749511124737,490.0,0.00016602,2]
[365169879,1749511125073,531.89543508,0.00016767,2]
[365169880,1749511125273,732.15,0.00016438,2]
[365169881,1749511125535,732.15,0.00016602,2]
[365169882,1749511125658,490.0,0.00016438,2]
[365169883,1749511125775,732.15,0.00016767,2]
[365169884,1749511125843,490.0,0.00016602,2]
[365169885,1749511126022,732.15,0.00016931,2]
[365169886,1749511126081,490.0,0.00016767,2]
[365169887,1749511126275,490.0,0.00016438,2]
[365169888,1749511126330,490.0,0.00016931,2]
[365169889,1749511126388,490.0,0.00016438,2]
[365169890,1749511126545,490.0,0.00016602,2]
[365169891,1749511126604,490.0,0.00016602,2]
[365169892,1749511126663,-99.88684869,0.00017052,2]
[365169893,1749511126797,204.87393609,0.00016767,2]
[365169894,1749511126849,285.12606391,0.00016767,2]
[365169895,1749511126908,490.0,0.00016767,2]
[365169896,1749511127057,490.0,0.00016931,2]
[365169897,1749511127128,490.0,0.00016931,2]
[365169898,1749511130800,492.39,0.00016438,2]
[365169899,1749511130951,490.0,0.00016438,2]
[365169900,1749511131210,490.0,0.00016602,2]
[365169901,1749511131407,492.39,0.00016602,2]
[365169902,1749511131461,490.0,0.00016767,2]
[365169903,1749511131621,492.39,0.00016767,2]
[365169904,1749511131703,586.63506184,0.00016931,2]
[365169905,1749511131892,581.26,0.00016438,2]
[365169906,1749511132148,490.0,0.00016438,2]
[365169907,1749511132203,581.26,0.00016602,2]
[365169908,1749511132259,492.39,0.00016931,2]
[365169909,1749511132412,490.0,0.00016602,2]
[365169910,1749511132465,581.26,0.00016767,2]
[365169911,1749511132649,490.0,0.00016767,2]
[365169912,1749511132701,581.26,0.00016931,2]
[365169913,1749511132907,490.0,0.00016931,2]
[365169914,1749511134847,540.82,0.00016438,2]
[365169915,1749511135102,543.69,0.00016438,2]
[365169916,1749511135363,543.69,0.00016602,2]
[365169917,1749511135506,709.54,0.00016438,2]
[365169918,1749511135658,543.69,0.00016767,2]
[365169919,1749511135733,709.54,0.00016602,2]
[365169920,1749511136137,543.69,0.00016931,2]
[365169921,1749511136207,709.54,0.00016767,2]
[365169922,1749511136277,752.98,0.00016438,2]
[365169923,1749511136380,709.54,0.00016931,2]
[365169924,1749511136493,752.98,0.00016602,2]
[365169925,1749511136602,752.98,0.00016767,2]
[365169926,1749511136769,752.98,0.00016931,2]
[365169927,1749511136835,490.0,0.00016438,2]
[365169928,1749511137049,490.0,0.00016602,2]
[365169929,1749511137233,713.94,0.00016438,2]
[365169930,1749511137309,490.0,0.00016767,2]
[365169931,1749511137528,713.94,0.00016602,2]
[365169932,1749511137589,490.0,0.00016931,2]
[365169933,1749511137683,736.64,0.00016438,2]
[365169934,1749511137768,713.94,0.00016767,2]
[365169935,1749511138021,736.64,0.00016602,2]
[365169936,1749511138077,713.94,0.00016931,2]
[365169937,1749511138290,736.64,0.00016767,2]
[365169938,1749511138562,736.64,0.00016931,2]
[365169939,1749511140879,490.0,0.00016438,2]
[365169940,1749511141142,490.0,0.00016602,2]
[365169941,1749511141414,490.0,0.00016767,2]
[365169942,1749511141655,490.0,0.00016931,2]
[365169943,1749511142571,490.0,0.00016438,2]
[365169944,1749511142794,490.0,0.00016602,2]
[365169945,1749511143055,490.0,0.00016767,2]
[365169946,1749511143314,490.0,0.00016931,2]
[365169947,1749511143972,652.79,0.00016438,2]
[365169948,1749511144224,652.79,0.00016602,2]
[365169949,1749511144483,652.79,0.00016767,2]
[365169950,1749511144782,652.79,0.00016931,2]
[365169951,1749511145114,180.0,0.00016438,2]
[365169952,1749511145173,562.55,0.00016438,2]
[365169953,1749511145413,562.55,0.00016602,2]
[365169954,1749511145667,562.55,0.00016767,2]
[365169955,1749511145917,490.0,0.00016438,2]
[365169956,1749511145973,562.55,0.00016931,2]
[365169957,1749511146348,490.0,0.00016602,2]
[365169958,1749511146605,490.0,0.00016767,2]
[365169959,1749511146794,490.0,0.00016438,2]
[365169960,1749511146856,490.0,0.00016931,2]
[365169961,1749511147037,490.0,0.00016602,2]
[365169962,1749511147536,480.0,0.00016438,2]
[365169963,1749511149119,490.0,0.00016767,2]
[365169964,1749511149385,490.0,0.00016931,2]
[365169965,1749511149903,490.0,0.00016438,2]
[365169966,1749511150154,490.0,0.00016602,2]
[365169967,1749511150642,490.0,0.00016767,2]
[365169968,1749511150710,490.0,0.00016931,2]
[365169969,1749511151368,917.11,0.00016438,2]
[365169970,1749511151398,-170.61,0.00017009,2]
[365169971,1749511151609,917.11,0.00016602,2]
[365169972,1749511151872,917.11,0.00016767,2]
[365169973,1749511152133,917.11,0.00016931,2]
[365169974,1749511152898,-267.77126462,0.00017009,2]
[365169975,1749511155132,1697.28360919,0.00016438,2]
[365169976,1749511155186,1391.06639081,0.00016438,2]
[365169977,1749511155371,3088.35,0.00016602,2]
[365169978,1749511155622,3088.35,0.00016767,2]
[365169979,1749511155883,3088.35,0.00016931,2]
[365169980,1749511156379,1086.27,0.00016438,2]
[365169981,1749511156685,1086.27,0.00016602,2]
[365169982,1749511156934,1086.27,0.00016767,2]
[365169983,1749511157183,1086.27,0.00016931,2]
[365169984,1749511157373,594.49,0.00016438,2]
[365169985,1749511157659,594.49,0.00016602,2]
[365169986,1749511157899,594.49,0.00016767,2]
[365169987,1749511158509,594.49,0.00016931,2]
[365169988,1749511158876,-151.26219868,0.00017009,2]
[365169989,1749511159059,490.0,0.00016438,2]
[365169990,1749511159613,490.0,0.00016602,2]
[365169991,1749511159773,490.0,0.00016438,2]
[365169992,1749511160003,490.0,0.00016602,2]
[365169993,1749511160214,490.0,0.00016767,2]
[365169994,1749511160267,490.0,0.00016767,2]
[365169995,1749511160471,490.0,0.00016931,2]
[365169996,1749511160608,490.0,0.00016931,2]
[365169997,1749511161018,-173.224352,0.00017009,2]
[365169998,1749511164508,1410.1,0.00016438,2]
[365169999,1749511164756,1410.1,0.00016602,2]
[365170000,1749511164998,1410.1,0.00016767,2]
[365170001,1749511165276,1410.1,0.00016931,2]
[365170002,1749511166663,490.0,0.00016438,2]
[365170003,1749511166947,490.0,0.00016602,2]
[365170004,1749511167000,490.0,0.00016438,2]
[365170005,1749511167195,490.0,0.00016767,2]
[365170006,1749511167248,454.8721391,0.00016602,2]
[365170007,1749511167353,-266.18449114,0.00017009,2]
[365170008,1749511167441,490.0,0.00016931,2]
[365170009,1749511167913,494.80656246,0.00016438,2]
[365170010,1749511169367,490.0,0.00016438,2]
[365170011,1749511169623,490.0,0.00016602,2]
[365170012,1749511169899,490.0,0.00016767,2]
[365170013,1749511169951,1530.25,0.00016438,2]
[365170014,1749511170139,567.56496323,0.00016931,2]
[365170015,1749511170195,1530.25,0.00016602,2]